[Event "Titled Tuesday Blitz November 01 Late 2022"]
[White "chess50years"]
[Black "Rios Escobar, Adan"]
[BlackFideId "3403645"]
[WhiteElo "2028"]
[BlackElo "2353"]
[Result "1-0"]
[Round "06"]
[TimeControl "180+1"]
[Date "2022.11.02"]
[WhiteClock "0:01:09"]
[BlackClock "0:00:40"]

1. d4 {[%clk 0:03:00]}  Nf6 {[%clk 0:02:55]} 2. c4 {[%clk 0:02:59]}  g6 {[%clk 0:02:55]} 3. Nc3 {[%clk 0:02:59]}  Bg7 {[%clk 0:02:55]} 4. e4 {[%clk 0:02:58]}  d6 {[%clk 0:02:55]} 5. Nf3 {[%clk 0:02:58]}  O-O {[%clk 0:02:56]} 6. h3 {[%clk 0:02:58]}  e5 {[%clk 0:02:52]} 7. dxe5 {[%clk 0:02:57]}  dxe5 {[%clk 0:02:51]} 8. Qxd8 {[%clk 0:02:56]}  Rxd8 {[%clk 0:02:52]} 9. Bg5 {[%clk 0:02:55]}  Re8 {[%clk 0:02:47]} 10. Nd5 {[%clk 0:02:54]}  Nxd5 {[%clk 0:02:33]} 11. cxd5 {[%clk 0:02:53]}  c6 {[%clk 0:02:21]} 12. Bc4 {[%clk 0:02:52]}  cxd5 {[%clk 0:02:16]} 13. Bxd5 {[%clk 0:02:51]}  Nc6 {[%clk 0:02:17]} 14. Bxc6 {[%clk 0:02:51]}  bxc6 {[%clk 0:02:17]} 15. O-O {[%clk 0:02:51]}  Rb8 {[%clk 0:02:11]} 16. b3 {[%clk 0:02:49]}  f5 {[%clk 0:02:07]} 17. Nd2 {[%clk 0:02:26]}  f4 {[%clk 0:01:50]} 18. f3 {[%clk 0:02:26]}  h6 {[%clk 0:01:39]} 19. Bh4 {[%clk 0:02:26]}  Bf8 {[%clk 0:01:39]} 20. Rfc1 {[%clk 0:02:21]}  Rb6 {[%clk 0:01:29]} 21. Bf2 {[%clk 0:02:13]}  Ra6 {[%clk 0:01:29]} 22. Bc5 {[%clk 0:02:00]}  Rd8 {[%clk 0:01:13]} 23. Bxf8 {[%clk 0:01:47]}  Rxd2 {[%clk 0:01:11]} 24. Bxh6 {[%clk 0:01:44]}  Be6 {[%clk 0:01:02]} 25. Rc5 {[%clk 0:01:30]}  Kh7 {[%clk 0:00:51]} 26. Bg5 {[%clk 0:01:26]}  Bxb3 {[%clk 0:00:45]} 27. Rxe5 {[%clk 0:01:17]}  Bxa2 {[%clk 0:00:42]} 28. Re7+ {[%clk 0:01:13]}  Kg8 {[%clk 0:00:41]} 29. Bxf4 {[%clk 0:01:10]}  c5 {[%clk 0:00:40]} 30. Bxd2 {[%clk 0:01:09]} 1-0


[Site "https://www.chess.com"]

[Event "Titled Tuesday Blitz November 01 Late 2022"]
[White "Ambartsumova, Karina"]
[Black "Golubova, Anna"]
[WhiteFideId "4166299"]
[BlackFideId "24173606"]
[WhiteElo "2299"]
[BlackElo "2047"]
[Result "0-1"]
[Round "07"]
[TimeControl "180+1"]
[Date "2022.11.02"]
[WhiteClock "0:00:02"]
[BlackClock "0:00:25"]

1. d4 {[%clk 0:03:00]}  g6 {[%clk 0:02:58]} 2. Nf3 {[%clk 0:03:00]}  Bg7 {[%clk 0:02:58]} 3. g3 {[%clk 0:03:01]}  d6 {[%clk 0:02:59]} 4. Bg2 {[%clk 0:03:01]}  Nf6 {[%clk 0:02:57]} 5. O-O {[%clk 0:03:01]}  O-O {[%clk 0:02:57]} 6. b3 {[%clk 0:03:02]}  Nc6 {[%clk 0:02:56]} 7. Bb2 {[%clk 0:03:01]}  Bf5 {[%clk 0:02:49]} 8. c4 {[%clk 0:02:44]}  d5 {[%clk 0:02:46]} 9. cxd5 {[%clk 0:02:34]}  Nxd5 {[%clk 0:02:45]} 10. Nh4 {[%clk 0:02:35]}  Bg4 {[%clk 0:02:37]} 11. Qd2 {[%clk 0:02:25]}  Qd7 {[%clk 0:02:25]} 12. e4 {[%clk 0:02:12]}  Nb6 {[%clk 0:02:23]} 13. d5 {[%clk 0:02:11]}  Nb8 {[%clk 0:02:04]} 14. Bxg7 {[%clk 0:02:05]}  Kxg7 {[%clk 0:02:05]} 15. f3 {[%clk 0:01:50]}  Bh3 {[%clk 0:02:03]} 16. Qc3+ {[%clk 0:01:47]}  Kg8 {[%clk 0:01:58]} 17. Bxh3 {[%clk 0:01:37]}  Qxh3 {[%clk 0:01:59]} 18. Qxc7 {[%clk 0:01:37]}  N8d7 {[%clk 0:01:59]} 19. Na3 {[%clk 0:01:33]}  Rac8 {[%clk 0:01:56]} 20. Qf4 {[%clk 0:01:32]}  Rc3 {[%clk 0:01:47]} 21. Rac1 {[%clk 0:01:29]}  Rfc8 {[%clk 0:01:46]} 22. Qd2 {[%clk 0:01:21]}  Rxc1 {[%clk 0:01:40]} 23. Rxc1 {[%clk 0:01:22]}  Ne5 {[%clk 0:01:39]} 24. Rxc8+ {[%clk 0:01:19]}  Nxc8 {[%clk 0:01:39]} 25. Qg2 {[%clk 0:01:04]}  Qd7 {[%clk 0:01:36]} 26. f4 {[%clk 0:01:00]}  Nd3 {[%clk 0:01:33]} 27. Qd2 {[%clk 0:00:51]}  Nc5 {[%clk 0:01:29]} 28. Qd4 {[%clk 0:00:51]}  Qc7 {[%clk 0:01:22]} 29. Nb5 {[%clk 0:00:44]}  Qb6 {[%clk 0:01:20]} 30. b4 {[%clk 0:00:40]}  Nxe4 {[%clk 0:01:11]} 31. Qxb6 {[%clk 0:00:27]}  Nxb6 {[%clk 0:01:10]} 32. Nxa7 {[%clk 0:00:25]}  Nxd5 {[%clk 0:01:10]} 33. a3 {[%clk 0:00:23]}  Nd2 {[%clk 0:01:10]} 34. Kf2 {[%clk 0:00:17]}  Nc4 {[%clk 0:01:10]} 35. Nb5 {[%clk 0:00:17]}  Kf8 {[%clk 0:01:03]} 36. Nf3 {[%clk 0:00:17]}  Ke8 {[%clk 0:01:03]} 37. Ke2 {[%clk 0:00:17]}  Kd7 {[%clk 0:00:52]} 38. Kd3 {[%clk 0:00:18]}  Nd6 {[%clk 0:00:52]} 39. Ne5+ {[%clk 0:00:17]}  Ke6 {[%clk 0:00:48]} 40. Nd4+ {[%clk 0:00:15]}  Kf6 {[%clk 0:00:46]} 41. Nd7+ {[%clk 0:00:13]}  Kg7 {[%clk 0:00:45]} 42. Nc5 {[%clk 0:00:12]}  b6 {[%clk 0:00:45]} 43. Nd7 {[%clk 0:00:12]}  f6 {[%clk 0:00:41]} 44. Nc6 {[%clk 0:00:07]}  Kf7 {[%clk 0:00:35]} 45. Nd4 {[%clk 0:00:07]}  Nc7 {[%clk 0:00:30]} 46. a4 {[%clk 0:00:06]}  Nd5 {[%clk 0:00:29]} 47. a5 {[%clk 0:00:06]}  Nxb4+ {[%clk 0:00:26]} 48. Kc3 {[%clk 0:00:05]}  bxa5 {[%clk 0:00:27]} 49. Kb3 {[%clk 0:00:04]}  Nd5 {[%clk 0:00:25]} 50. Ka4 {[%clk 0:00:04]}  Ne3 {[%clk 0:00:25]} 51. Kxa5 {[%clk 0:00:04]}  Nf1 {[%clk 0:00:25]} 52. Nf3 {[%clk 0:00:04]}  Ne4 {[%clk 0:00:25]} 53. Kb4 {[%clk 0:00:03]}  Ke6 {[%clk 0:00:25]} 54. Nb6 {[%clk 0:00:02]}  Ned2 {[%clk 0:00:25]} 55. Kc3 {[%clk 0:00:02]}  Nxf3 {[%clk 0:00:25]} 0-1


[Site "https://www.chess.com"]

[Event "Titled Tuesday Blitz November 01 Late 2022"]
[White "Arnold, Ken"]
[Black "D`Arruda, Ricardo D."]
[WhiteFideId "2056836"]
[BlackFideId "100692"]
[WhiteElo "2326"]
[BlackElo "2468"]
[Result "0-1"]
[Round "07"]
[TimeControl "180+1"]
[Date "2022.11.02"]
[WhiteClock "0:00:07"]
[BlackClock "0:00:22"]

1. d4 {[%clk 0:03:00]}  Nf6 {[%clk 0:02:53]} 2. c4 {[%clk 0:02:53]}  e5 {[%clk 0:02:52]} 3. dxe5 {[%clk 0:02:52]}  Ne4 {[%clk 0:02:52]} 4. Nf3 {[%clk 0:02:51]}  Nc6 {[%clk 0:02:51]} 5. e3 {[%clk 0:02:49]}  d6 {[%clk 0:02:50]} 6. Be2 {[%clk 0:02:48]}  dxe5 {[%clk 0:02:49]} 7. Qxd8+ {[%clk 0:02:47]}  Kxd8 {[%clk 0:02:50]} 8. O-O {[%clk 0:02:38]}  f6 {[%clk 0:02:50]} 9. Nbd2 {[%clk 0:02:32]}  Nc5 {[%clk 0:02:49]} 10. Rd1 {[%clk 0:02:26]}  Ke8 {[%clk 0:02:49]} 11. Nb3 {[%clk 0:02:17]}  Nxb3 {[%clk 0:02:45]} 12. axb3 {[%clk 0:02:15]}  Bf5 {[%clk 0:02:38]} 13. Bd2 {[%clk 0:02:02]}  Be7 {[%clk 0:02:17]} 14. Bc3 {[%clk 0:01:50]}  Kf7 {[%clk 0:02:09]} 15. Nd2 {[%clk 0:01:43]}  Nb4 {[%clk 0:02:01]} 16. e4 {[%clk 0:01:41]}  Be6 {[%clk 0:01:58]} 17. Bxb4 {[%clk 0:01:39]}  Bxb4 {[%clk 0:01:59]} 18. Nf1 {[%clk 0:01:35]}  c6 {[%clk 0:01:50]} 19. h3 {[%clk 0:01:27]}  Bc5 {[%clk 0:01:46]} 20. Bg4 {[%clk 0:01:24]}  Bd4 {[%clk 0:01:42]} 21. Bxe6+ {[%clk 0:01:17]}  Kxe6 {[%clk 0:01:43]} 22. Rd2 {[%clk 0:01:16]}  Rhd8 {[%clk 0:01:35]} 23. g3 {[%clk 0:01:11]}  Bb6 {[%clk 0:01:21]} 24. Rad1 {[%clk 0:01:05]}  Rxd2 {[%clk 0:01:20]} 25. Rxd2 {[%clk 0:01:05]}  Bd4 {[%clk 0:01:14]} 26. Kg2 {[%clk 0:01:02]}  a5 {[%clk 0:01:13]} 27. f4 {[%clk 0:00:53]}  a4 {[%clk 0:01:11]} 28. Rd3 {[%clk 0:00:44]}  a3 {[%clk 0:01:05]} 29. bxa3 {[%clk 0:00:43]}  Rxa3 {[%clk 0:01:05]} 30. Nd2 {[%clk 0:00:43]}  Kd6 {[%clk 0:00:57]} 31. fxe5+ {[%clk 0:00:33]}  fxe5 {[%clk 0:00:57]} 32. Kf3 {[%clk 0:00:21]}  Kc5 {[%clk 0:00:54]} 33. Kg4 {[%clk 0:00:21]}  Ra1 {[%clk 0:00:39]} 34. Kf5 {[%clk 0:00:20]}  Rd1 {[%clk 0:00:32]} 35. Ke6 {[%clk 0:00:13]}  Kb4 {[%clk 0:00:30]} 36. Kf7 {[%clk 0:00:13]}  Bc3 {[%clk 0:00:27]} 37. Kxg7 {[%clk 0:00:09]}  Rxd2 {[%clk 0:00:24]} 38. Rf3 {[%clk 0:00:07]}  Rd7+ {[%clk 0:00:22]} 0-1


[Site "https://www.chess.com"]

[Event "Titled Tuesday Blitz November 01 Late 2022"]
[White "Bettalli, Francesco"]
[Black "Polster, Christian"]
[WhiteFideId "2816453"]
[BlackFideId "12965081"]
[WhiteElo "2216"]
[BlackElo "2209"]
[Result "1-0"]
[Round "07"]
[TimeControl "180+1"]
[Date "2022.11.02"]
[WhiteClock "0:00:21"]
[BlackClock "0:00:02"]

1. d4 {[%clk 0:03:00]}  d5 {[%clk 0:02:55]} 2. Nc3 {[%clk 0:03:00]}  Nf6 {[%clk 0:02:55]} 3. Bg5 {[%clk 0:03:00]}  Nbd7 {[%clk 0:02:55]} 4. Qd3 {[%clk 0:02:59]}  h6 {[%clk 0:02:48]} 5. Bxf6 {[%clk 0:02:58]}  Nxf6 {[%clk 0:02:48]} 6. O-O-O {[%clk 0:02:59]}  c6 {[%clk 0:02:43]} 7. e4 {[%clk 0:02:59]}  dxe4 {[%clk 0:02:43]} 8. Nxe4 {[%clk 0:02:59]}  Nxe4 {[%clk 0:02:22]} 9. Qxe4 {[%clk 0:03:00]}  Be6 {[%clk 0:02:22]} 10. c4 {[%clk 0:02:41]}  Qa5 {[%clk 0:02:15]} 11. d5 {[%clk 0:02:32]}  cxd5 {[%clk 0:01:53]} 12. cxd5 {[%clk 0:02:33]}  Rc8+ {[%clk 0:01:37]} 13. Kb1 {[%clk 0:02:31]}  Bd7 {[%clk 0:01:24]} 14. Nf3 {[%clk 0:02:25]}  g6 {[%clk 0:01:16]} 15. Bd3 {[%clk 0:02:19]}  Bg7 {[%clk 0:01:09]} 16. d6 {[%clk 0:01:46]}  Be6 {[%clk 0:00:45]} 17. a3 {[%clk 0:01:08]}  exd6 {[%clk 0:00:28]} 18. Nd4 {[%clk 0:00:55]}  Qe5 {[%clk 0:00:15]} 19. Qxe5 {[%clk 0:00:55]}  Bxe5 {[%clk 0:00:14]} 20. Nxe6 {[%clk 0:00:55]}  fxe6 {[%clk 0:00:14]} 21. Bxg6+ {[%clk 0:00:55]}  Ke7 {[%clk 0:00:14]} 22. Be4 {[%clk 0:00:54]}  b6 {[%clk 0:00:13]} 23. g3 {[%clk 0:00:54]}  d5 {[%clk 0:00:11]} 24. Bg2 {[%clk 0:00:44]}  Kd6 {[%clk 0:00:10]} 25. f4 {[%clk 0:00:37]}  Bf6 {[%clk 0:00:09]} 26. Rhe1 {[%clk 0:00:38]}  Rc4 {[%clk 0:00:06]} 27. f5 {[%clk 0:00:32]}  exf5 {[%clk 0:00:02]} 28. Rxd5+ {[%clk 0:00:25]}  Kc7 {[%clk 0:00:01]} 29. Rxf5 {[%clk 0:00:24]}  Rf8 {[%clk 0:00:02]} 30. Ref1 {[%clk 0:00:21]} 1-0


[Site "https://www.chess.com"]

[Event "Titled Tuesday Blitz November 01 Late 2022"]
[White "Bjelobrk, Igor"]
[Black "Jaskolka, Tomasz"]
[WhiteFideId "4300726"]
[BlackFideId "1170791"]
[WhiteElo "2335"]
[BlackElo "2126"]
[Result "1-0"]
[Round "07"]
[TimeControl "180+1"]
[Date "2022.11.02"]
[WhiteClock "0:02:02"]
[BlackClock "0:01:25"]

1. Nf3 {[%clk 0:03:00]}  d5 {[%clk 0:02:58]} 2. c4 {[%clk 0:03:00]}  c6 {[%clk 0:02:58]} 3. d4 {[%clk 0:02:58]}  Nf6 {[%clk 0:02:58]} 4. Qc2 {[%clk 0:02:56]}  g6 {[%clk 0:02:56]} 5. cxd5 {[%clk 0:02:55]}  cxd5 {[%clk 0:02:56]} 6. Bf4 {[%clk 0:02:55]}  Nc6 {[%clk 0:02:56]} 7. e3 {[%clk 0:02:51]}  Bg7 {[%clk 0:02:56]} 8. Be2 {[%clk 0:02:50]}  Bf5 {[%clk 0:02:55]} 9. Qb3 {[%clk 0:02:50]}  O-O {[%clk 0:02:43]} 10. Nc3 {[%clk 0:02:49]}  Qb6 {[%clk 0:02:10]} 11. Qxb6 {[%clk 0:02:47]}  axb6 {[%clk 0:02:11]} 12. O-O {[%clk 0:02:48]}  Rfd8 {[%clk 0:02:06]} 13. Rfc1 {[%clk 0:02:47]}  Ne4 {[%clk 0:02:05]} 14. Bc7 {[%clk 0:02:46]}  Rdc8 {[%clk 0:02:04]} 15. Bxb6 {[%clk 0:02:46]}  e6 {[%clk 0:01:56]} 16. Nxe4 {[%clk 0:02:37]}  Bxe4 {[%clk 0:01:53]} 17. Nd2 {[%clk 0:02:36]}  Bf5 {[%clk 0:01:52]} 18. g4 {[%clk 0:02:34]}  Be4 {[%clk 0:01:31]} 19. f3 {[%clk 0:02:28]}  e5 {[%clk 0:01:32]} 20. fxe4 {[%clk 0:02:25]}  dxe4 {[%clk 0:01:30]} 21. d5 {[%clk 0:02:25]}  Nb4 {[%clk 0:01:29]} 22. Rxc8+ {[%clk 0:02:15]}  Rxc8 {[%clk 0:01:29]} 23. d6 {[%clk 0:02:15]}  Nc6 {[%clk 0:01:28]} 24. d7 {[%clk 0:02:11]}  Ra8 {[%clk 0:01:27]} 25. Bb5 {[%clk 0:02:07]}  Bf6 {[%clk 0:01:27]} 26. Bxc6 {[%clk 0:02:05]}  bxc6 {[%clk 0:01:28]} 27. Nc4 {[%clk 0:02:05]}  Kf8 {[%clk 0:01:25]} 28. a4 {[%clk 0:02:02]}  Ke7 {[%clk 0:01:25]} 29. d8=Q+ {[%clk 0:02:02]} 1-0


[Site "https://www.chess.com"]

[Event "Titled Tuesday Blitz November 01 Late 2022"]
[White "Buchenau, Frank"]
[Black "Barria Zuniga, Daniel"]
[WhiteFideId "4604350"]
[BlackFideId "3400816"]
[WhiteElo "2157"]
[BlackElo "2414"]
[Result "0-1"]
[Round "07"]
[TimeControl "180+1"]
[Date "2022.11.02"]
[WhiteClock "0:00:07"]
[BlackClock "0:00:07"]

1. e4 {[%clk 0:03:00]}  c5 {[%clk 0:02:59]} 2. Nf3 {[%clk 0:03:00]}  Nc6 {[%clk 0:02:59]} 3. Bb5 {[%clk 0:03:00]}  Na5 {[%clk 0:02:58]} 4. O-O {[%clk 0:02:57]}  a6 {[%clk 0:02:59]} 5. Be2 {[%clk 0:02:56]}  b5 {[%clk 0:03:00]} 6. Re1 {[%clk 0:02:53]}  Bb7 {[%clk 0:03:00]} 7. Bf1 {[%clk 0:02:50]}  e6 {[%clk 0:02:54]} 8. c3 {[%clk 0:02:49]}  Nf6 {[%clk 0:02:53]} 9. e5 {[%clk 0:02:46]}  Nd5 {[%clk 0:02:54]} 10. d3 {[%clk 0:02:43]}  Be7 {[%clk 0:02:50]} 11. Nbd2 {[%clk 0:02:42]}  O-O {[%clk 0:02:50]} 12. Ne4 {[%clk 0:02:42]}  Rc8 {[%clk 0:02:45]} 13. Bg5 {[%clk 0:02:41]}  Bxg5 {[%clk 0:02:34]} 14. Nfxg5 {[%clk 0:02:36]}  f5 {[%clk 0:02:32]} 15. exf6 {[%clk 0:02:32]}  gxf6 {[%clk 0:02:32]} 16. Nf3 {[%clk 0:02:16]}  Qe7 {[%clk 0:02:26]} 17. Qd2 {[%clk 0:02:09]}  Nc6 {[%clk 0:02:17]} 18. Qh6 {[%clk 0:02:06]}  Rf7 {[%clk 0:02:11]} 19. Rad1 {[%clk 0:02:02]}  Rcf8 {[%clk 0:02:04]} 20. a3 {[%clk 0:01:34]}  f5 {[%clk 0:01:48]} 21. Neg5 {[%clk 0:01:21]}  Rg7 {[%clk 0:01:33]} 22. Nxe6 {[%clk 0:00:51]}  dxe6 {[%clk 0:01:30]} 23. Rxe6 {[%clk 0:00:52]}  Rf6 {[%clk 0:01:01]} 24. Rxf6 {[%clk 0:00:26]}  Qxf6 {[%clk 0:00:57]} 25. Qh5 {[%clk 0:00:25]}  Qf7 {[%clk 0:00:42]} 26. Qh4 {[%clk 0:00:22]}  Rg4 {[%clk 0:00:34]} 27. Qh6 {[%clk 0:00:20]}  Qg6 {[%clk 0:00:33]} 28. Qd2 {[%clk 0:00:18]}  Nf4 {[%clk 0:00:31]} 29. g3 {[%clk 0:00:18]}  Ne6 {[%clk 0:00:19]} 30. Re1 {[%clk 0:00:18]}  f4 {[%clk 0:00:14]} 31. Bh3 {[%clk 0:00:17]}  fxg3 {[%clk 0:00:14]} 32. fxg3 {[%clk 0:00:15]}  h5 {[%clk 0:00:10]} 33. Bxg4 {[%clk 0:00:14]}  hxg4 {[%clk 0:00:11]} 34. Nh4 {[%clk 0:00:15]}  Qf6 {[%clk 0:00:11]} 35. Qe2 {[%clk 0:00:15]}  Ng5 {[%clk 0:00:09]} 36. Qxg4 {[%clk 0:00:14]}  Ne5 {[%clk 0:00:10]} 37. Rf1 {[%clk 0:00:14]}  Nf3+ {[%clk 0:00:08]} 38. Nxf3 {[%clk 0:00:14]}  Bxf3 {[%clk 0:00:09]} 39. h4 {[%clk 0:00:13]}  Bxg4 {[%clk 0:00:08]} 40. Rxf6 {[%clk 0:00:12]}  Nf3+ {[%clk 0:00:08]} 41. Kf2 {[%clk 0:00:13]}  Ne5 {[%clk 0:00:07]} 42. Rxa6 {[%clk 0:00:12]}  Nxd3+ {[%clk 0:00:07]} 43. Ke3 {[%clk 0:00:12]}  Nxb2 {[%clk 0:00:07]} 44. Kf4 {[%clk 0:00:12]}  Be2 {[%clk 0:00:06]} 45. g4 {[%clk 0:00:11]}  Nd1 {[%clk 0:00:05]} 46. Kg5 {[%clk 0:00:11]}  Nxc3 {[%clk 0:00:05]} 47. Kg6 {[%clk 0:00:11]}  Kf8 {[%clk 0:00:06]} 48. Ra8+ {[%clk 0:00:10]}  Ke7 {[%clk 0:00:06]} 49. g5 {[%clk 0:00:11]}  b4 {[%clk 0:00:05]} 50. Ra7+ {[%clk 0:00:11]}  Kd6 {[%clk 0:00:05]} 51. axb4 {[%clk 0:00:12]}  cxb4 {[%clk 0:00:05]} 52. Rb7 {[%clk 0:00:12]}  Nb5 {[%clk 0:00:05]} 53. h5 {[%clk 0:00:12]}  b3 {[%clk 0:00:06]} 54. h6 {[%clk 0:00:08]}  b2 {[%clk 0:00:05]} 55. Rb6+ {[%clk 0:00:08]}  Kc7 {[%clk 0:00:05]} 56. Rxb5 {[%clk 0:00:07]}  Bxb5 {[%clk 0:00:05]} 57. h7 {[%clk 0:00:06]}  Bd3+ {[%clk 0:00:05]} 58. Kg7 {[%clk 0:00:06]}  Bxh7 {[%clk 0:00:05]} 59. Kxh7 {[%clk 0:00:07]}  b1=Q+ {[%clk 0:00:06]} 60. g6 {[%clk 0:00:07]}  Kd7 {[%clk 0:00:06]} 61. Kh6 {[%clk 0:00:07]}  Ke7 {[%clk 0:00:06]} 62. g7 {[%clk 0:00:07]}  Kf7 {[%clk 0:00:06]} 63. g8=Q+ {[%clk 0:00:07]}  Kxg8 {[%clk 0:00:07]} 0-1


[Site "https://www.chess.com"]

[Event "Titled Tuesday Blitz November 01 Late 2022"]
[White "Burke, Paul"]
[Black "Antonio, Jorge Carlos"]
[WhiteFideId "2605767"]
[BlackFideId "113190"]
[WhiteElo "1868"]
[BlackElo "2247"]
[Result "1/2-1/2"]
[Round "07"]
[TimeControl "180+1"]
[Date "2022.11.02"]
[WhiteClock "0:00:17"]
[BlackClock "0:00:06"]

1. e4 {[%clk 0:03:00]}  c5 {[%clk 0:02:59]} 2. d4 {[%clk 0:03:00]}  cxd4 {[%clk 0:02:59]} 3. c3 {[%clk 0:02:59]}  dxc3 {[%clk 0:02:56]} 4. Nxc3 {[%clk 0:02:59]}  e6 {[%clk 0:02:55]} 5. Nf3 {[%clk 0:02:59]}  Nc6 {[%clk 0:02:53]} 6. Bf4 {[%clk 0:02:58]}  a6 {[%clk 0:02:50]} 7. Bd3 {[%clk 0:02:58]}  Bb4 {[%clk 0:02:48]} 8. Qe2 {[%clk 0:02:58]}  Bxc3+ {[%clk 0:02:47]} 9. bxc3 {[%clk 0:02:57]}  Qa5 {[%clk 0:02:47]} 10. Rd1 {[%clk 0:02:57]}  Qxc3+ {[%clk 0:02:45]} 11. Kf1 {[%clk 0:02:57]}  Nd4 {[%clk 0:02:41]} 12. Nxd4 {[%clk 0:02:53]}  Qxd4 {[%clk 0:02:41]} 13. Bb1 {[%clk 0:02:41]}  Qb6 {[%clk 0:02:39]} 14. Kg1 {[%clk 0:02:38]}  Nf6 {[%clk 0:02:36]} 15. h4 {[%clk 0:02:31]}  O-O {[%clk 0:02:34]} 16. Rh3 {[%clk 0:02:25]}  e5 {[%clk 0:02:28]} 17. Be3 {[%clk 0:02:24]}  Qa5 {[%clk 0:02:23]} 18. Rg3 {[%clk 0:02:22]}  b5 {[%clk 0:02:13]} 19. Bh6 {[%clk 0:02:16]}  Ne8 {[%clk 0:02:08]} 20. h5 {[%clk 0:02:14]}  Qb6 {[%clk 0:02:05]} 21. Qd2 {[%clk 0:02:04]}  Qf6 {[%clk 0:01:56]} 22. Bg5 {[%clk 0:01:59]}  Qe6 {[%clk 0:01:52]} 23. Bh6 {[%clk 0:01:50]}  Qf6 {[%clk 0:01:51]} 24. Bg5 {[%clk 0:01:49]}  Qe6 {[%clk 0:01:51]} 25. Bh6 {[%clk 0:01:49]}  Kh8 {[%clk 0:01:44]} 26. Bg5 {[%clk 0:01:36]}  h6 {[%clk 0:01:41]} 27. Be3 {[%clk 0:01:33]}  Bb7 {[%clk 0:01:30]} 28. Bc5 {[%clk 0:01:30]}  d6 {[%clk 0:01:28]} 29. Be3 {[%clk 0:01:18]}  Rd8 {[%clk 0:01:21]} 30. Bc2 {[%clk 0:01:17]}  d5 {[%clk 0:01:20]} 31. Bb3 {[%clk 0:01:17]}  Nf6 {[%clk 0:00:59]} 32. Bxh6 {[%clk 0:01:11]}  Nxh5 {[%clk 0:00:53]} 33. exd5 {[%clk 0:01:09]}  Qxh6 {[%clk 0:00:47]} 34. Rh3 {[%clk 0:01:08]}  Qxd2 {[%clk 0:00:41]} 35. Rxd2 {[%clk 0:01:06]}  g6 {[%clk 0:00:41]} 36. g4 {[%clk 0:01:05]}  Bc8 {[%clk 0:00:40]} 37. Rh4 {[%clk 0:01:02]}  Kg7 {[%clk 0:00:31]} 38. gxh5 {[%clk 0:01:01]}  g5 {[%clk 0:00:31]} 39. h6+ {[%clk 0:00:58]}  Kh8 {[%clk 0:00:26]} 40. Rh5 {[%clk 0:00:56]}  f6 {[%clk 0:00:25]} 41. d6 {[%clk 0:00:53]}  Bg4 {[%clk 0:00:20]} 42. Rh2 {[%clk 0:00:52]}  Rd7 {[%clk 0:00:20]} 43. Rg2 {[%clk 0:00:42]}  Bf5 {[%clk 0:00:19]} 44. a4 {[%clk 0:00:38]}  Rfd8 {[%clk 0:00:17]} 45. axb5 {[%clk 0:00:37]}  axb5 {[%clk 0:00:16]} 46. Ra2 {[%clk 0:00:33]}  Rxd6 {[%clk 0:00:16]} 47. Ra7 {[%clk 0:00:32]}  R8d7 {[%clk 0:00:16]} 48. Ra8+ {[%clk 0:00:32]}  Kh7 {[%clk 0:00:15]} 49. Rh2 {[%clk 0:00:30]}  Rd3 {[%clk 0:00:13]} 50. Bc2 {[%clk 0:00:29]}  Rd1+ {[%clk 0:00:11]} 51. Bxd1 {[%clk 0:00:29]}  Rxd1+ {[%clk 0:00:11]} 52. Kg2 {[%clk 0:00:29]}  Be4+ {[%clk 0:00:11]} 53. f3 {[%clk 0:00:28]}  Bxa8 {[%clk 0:00:12]} 54. Kg3 {[%clk 0:00:25]}  Rd2 {[%clk 0:00:13]} 55. Rh1 {[%clk 0:00:24]}  Rh2 {[%clk 0:00:14]} 56. Rxh2 {[%clk 0:00:24]}  b4 {[%clk 0:00:12]} 57. Rb2 {[%clk 0:00:23]}  Kxh6 {[%clk 0:00:11]} 58. Rxb4 {[%clk 0:00:23]}  Bd5 {[%clk 0:00:10]} 59. Rb6 {[%clk 0:00:23]}  Kg6 {[%clk 0:00:10]} 60. Rd6 {[%clk 0:00:23]}  Bc4 {[%clk 0:00:10]} 61. Rc6 {[%clk 0:00:22]}  Bd3 {[%clk 0:00:10]} 62. Rd6 {[%clk 0:00:22]}  e4 {[%clk 0:00:09]} 63. fxe4 {[%clk 0:00:20]}  Bxe4 {[%clk 0:00:09]} 64. Rb6 {[%clk 0:00:20]}  Kf5 {[%clk 0:00:08]} 65. Rb5+ {[%clk 0:00:19]}  Ke6 {[%clk 0:00:08]} 66. Rb6+ {[%clk 0:00:19]}  Ke5 {[%clk 0:00:08]} 67. Rb5+ {[%clk 0:00:19]}  Bd5 {[%clk 0:00:08]} 68. Rb6 {[%clk 0:00:19]}  f5 {[%clk 0:00:09]} 69. Rb5 {[%clk 0:00:18]}  Ke4 {[%clk 0:00:08]} 70. Rb4+ {[%clk 0:00:18]}  Ke5 {[%clk 0:00:07]} 71. Rb5 {[%clk 0:00:18]}  Kf6 {[%clk 0:00:07]} 72. Rb6+ {[%clk 0:00:17]}  Ke5 {[%clk 0:00:06]} 73. Rb5 {[%clk 0:00:17]} 1/2-1/2


[Site "https://www.chess.com"]